fUST/lending_fUST_20240915
["ID","MTS","AMOUNT","RATE_DAILY","PERIOD"]
[338180932,1726366246681,-500.0,0.00021917,2]
[338180933,1726366246691,-234.22735249,0.00021917,2]
[338180934,1726366246700,-500.0,0.00021917,2]
[338180935,1726366246711,-500.0,0.00021917,2]
[338180936,1726366246720,-502.61242978,0.00021917,2]
[338180937,1726366246731,-558.11,0.00021917,2]
[338180938,1726366246745,-500.0,0.00021917,2]
[338180939,1726366246756,-500.0,0.00021917,2]
[338180940,1726366246766,-500.0,0.00021917,2]
[338180941,1726366246777,-1050.23,0.00021917,2]
[338180942,1726366246790,-692.36,0.00021917,2]
[338180943,1726366246801,-500.0,0.00021917,2]
[338180944,1726366246812,-3571.74,0.00021917,2]
[338180945,1726366246825,-3571.74,0.00021917,2]
[338180946,1726366246835,-3571.74,0.00021917,2]
[338180947,1726366246845,-3571.74,0.00021917,2]
[338180948,1726366246855,-3571.74,0.00021917,2]
[338180949,1726366246864,-3571.74,0.00021917,2]
[338180950,1726366246873,-3571.74,0.00021917,2]
[338180951,1726366246883,-3571.74,0.00021917,2]
[338180952,1726366246892,-3571.74,0.00021917,2]
[338180953,1726366246901,-3571.74,0.00021917,2]
[338180954,1726366246910,-500.0,0.00021917,2]
[338180955,1726366246920,-500.0,0.00021917,2]
[338180956,1726366246929,-861.96,0.00021917,2]
[338180957,1726366246939,-500.0,0.00021917,2]
[338180958,1726366246948,-500.0,0.00021917,2]
[338180959,1726366246957,-500.0,0.00021917,2]
[338180960,1726366246967,-790.96,0.00021917,2]
[338180961,1726366246976,-500.0,0.00021917,2]
[338180962,1726366246986,-500.0,0.00021917,2]
[338180963,1726366246995,-500.0,0.00021917,2]
[338180964,1726366247004,-500.0,0.00021917,2]
[338180965,1726366247014,-1209.36,0.00021917,2]
[338180966,1726366247023,-500.0,0.00021917,2]
[338180967,1726366247032,-655.22,0.00021917,2]
[338180968,1726366247041,-504.28426199,0.00021917,2]
[338180969,1726366247050,-500.0,0.00021917,2]
[338180970,1726366247060,-500.0,0.00021917,2]
[338180971,1726366247070,-506.19042771,0.00021917,2]
[338180972,1726366247079,-500.0,0.00021917,2]
[338180973,1726366247088,-500.0,0.00021917,2]
[338180974,1726366247098,-500.0,0.00021917,2]
[338180975,1726366247107,-500.0,0.00021917,2]
[338180976,1726366247116,-500.96302762,0.00021917,2]
[338180977,1726366247125,-1552.36,0.00021917,2]
[338180978,1726366247135,-502.53446546,0.00021917,2]
[338180979,1726366247143,-500.0,0.00021917,2]
[338180980,1726366247153,-500.0,0.00021917,2]
[338180981,1726366247162,-943.62,0.00021917,2]
[338180982,1726366247171,-1000.0,0.00021917,2]
[338180983,1726366247180,-500.0,0.00021917,2]
[338180984,1726366247189,-500.0,0.00021917,2]
[338180985,1726366247199,-500.0,0.00021917,2]
[338180986,1726366247208,-500.0,0.00021917,2]
[338180987,1726366247217,-503.02543059,0.00021917,2]
[338180988,1726366247226,-686.25,0.00021917,2]
[338180989,1726366247235,-500.0,0.00021917,2]
[338180990,1726366247245,-500.0,0.00021917,2]
[338180991,1726366247254,-502.81022497,0.00021917,2]
[338180992,1726366247264,-865.16,0.00021917,2]
[338180993,1726366247273,-500.0,0.00021917,2]
[338180994,1726366247282,-500.0,0.00021917,2]
[338180995,1726366247292,-500.0,0.00021917,2]
[338180996,1726366247301,-500.0,0.00021917,2]
[338180997,1726366247310,-500.0,0.00021917,2]
[338180998,1726366247319,-571.12949867,0.00021917,2]
[338180999,1726366247328,-503.77042172,0.00021917,2]
[338181000,1726366247337,-502.23876988,0.00021917,2]
[338181001,1726366247346,-500.0,0.00021917,2]
[338181002,1726366247355,-501.73420938,0.00021917,2]
[338181003,1726366247549,-539.97,0.00021917,2]
[338181004,1726366247564,-500.0,0.00021917,2]
[338181005,1726366247574,-500.0,0.00021917,2]
[338181006,1726366247583,-616.77,0.00021917,2]
[338181007,1726366247592,-500.0,0.00021917,2]
[338181008,1726366247601,-500.0,0.00021917,2]
[338181009,1726366247611,-500.0,0.00021917,2]
[338181010,1726366247619,-500.0,0.00021917,2]
[338181011,1726366247628,-674.82,0.00021917,2]
[338181012,1726366247637,-500.0,0.00021917,2]
[338181013,1726366247647,-500.0,0.00021917,2]
[338181014,1726366247656,-793.32,0.00021917,2]
[338181015,1726366247665,-500.0,0.00021917,2]
[338181016,1726366247674,-500.0,0.00021917,2]
[338181017,1726366247684,-447.68211949,0.00021917,2]
[338181018,1726366247696,-500.0,0.00021917,2]
[338181019,1726366247705,-502.02758629,0.00021917,2]
[338181020,1726366247714,-455.87782222,0.00021917,2]
[338181021,1726366247723,-500.0,0.00021917,2]
[338181022,1726366247732,-500.0,0.00021917,2]
[338181023,1726366247746,-620.35,0.00021917,2]
[338181024,1726366247755,-500.0,0.00021917,2]
[338181025,1726366247764,-500.0,0.00021917,2]
[338181026,1726366247774,-500.0,0.00021917,2]
[338181027,1726366247784,-500.0,0.00021917,2]
[338181028,1726366247793,-493.3185313,0.00021917,2]
[338181029,1726366247803,-926.3,0.00021917,2]
[338181030,1726366247811,-500.0,0.00021917,2]
[338181031,1726366247824,-500.0,0.00021917,2]
[338181032,1726366247834,-500.0,0.00021917,2]
[338181033,1726366247843,-500.0,0.00021917,2]
[338181034,1726366247852,-500.0,0.00021917,2]
[338181035,1726366247861,-500.0,0.00021917,2]
[338181036,1726366247871,-503.5352098,0.00021917,2]
[338181037,1726366247880,-500.0,0.00021917,2]
[338181038,1726366247889,-500.0,0.00021917,2]
[338181039,1726366247898,-500.0,0.00021917,2]
[338181040,1726366247908,-500.0,0.00021917,2]
[338181041,1726366247919,-500.0,0.00021917,2]
[338181042,1726366247930,-500.0,0.00021917,2]
[338181043,1726366247940,-500.0,0.00021917,2]
[338181044,1726366247950,-637.57,0.00021917,2]
[338181045,1726366247961,-500.0,0.00021917,2]
[338181046,1726366247970,-529.19,0.00021917,2]
[338181047,1726366247979,-500.0,0.00021917,2]
[338181048,1726366247989,-500.0,0.00021917,2]
[338181049,1726366247998,-500.0,0.00021917,2]
[338181050,1726366248009,-601.53,0.00021917,2]
[338181051,1726366248018,-500.0,0.00021917,2]
[338181052,1726366248029,-153.79734689,0.00021917,2]
[338181053,1726366248039,-500.0,0.00021917,2]
[338181054,1726366248049,-500.0,0.00021917,2]
[338181055,1726366248058,-1200.96,0.00021917,2]
[338181056,1726366248068,-500.0,0.00021917,2]
[338181057,1726366248079,-500.0,0.00021917,2]
[338181058,1726366248089,-501.25992494,0.00021917,2]
[338181059,1726366248100,-500.0,0.00021917,2]
[338181060,1726366248111,-500.0,0.00021917,2]
[338181061,1726366248120,-503.09,0.00021917,2]
[338181062,1726366248130,-500.0,0.00021917,2]
[338181063,1726366248142,-500.0,0.00021917,2]
[338181064,1726366248152,-500.0,0.00021917,2]
[338181065,1726366248162,-499.33840069,0.00021917,2]
[338181066,1726366248173,-500.0,0.00021917,2]
[338181067,1726366248182,-500.0,0.00021917,2]
[338181068,1726366248192,-500.0,0.00021917,2]
[338181069,1726366248201,-500.0,0.00021917,2]
[338181070,1726366248213,-500.0,0.00021917,2]
[338181071,1726366248223,-634.73,0.00021917,2]
[338181072,1726366248232,-500.0,0.00021917,2]
[338181073,1726366248241,-500.0,0.00021917,2]
[338181074,1726366248252,-475.39060528,0.00021917,2]
[338181075,1726366248262,-500.0,0.00021917,2]
[338181076,1726366248273,-500.0,0.00021917,2]
[338181077,1726366248284,-809.01,0.00021917,2]
[338181078,1726366248293,-500.0,0.00021917,2]
[338181079,1726366248303,-500.0,0.00021917,2]
[338181080,1726366248312,-500.0,0.00021917,2]
[338181081,1726366248321,-500.0,0.00021917,2]
[338181082,1726366248331,-500.0,0.00021917,2]
[338181083,1726366248342,-500.0,0.00021917,2]
[338181084,1726366248352,-500.0,0.00021917,2]
[338181085,1726366248362,-500.0,0.00021917,2]
[338181086,1726366248371,-500.0,0.00021917,2]
[338181087,1726366248380,-500.0,0.00021917,2]
[338181088,1726366248390,-500.0,0.00021917,2]
[338181089,1726366248401,-502.13514895,0.00021917,2]
[338181090,1726366248410,-500.0,0.00021917,2]
[338181091,1726366248419,-500.0,0.00021917,2]
[338181092,1726366248428,-172.09921511,0.00021917,2]
[338181093,1726366248437,-577.29,0.00021917,2]
[338181094,1726366248447,-500.0,0.00021917,2]
[338181095,1726366248458,-500.0,0.00021917,2]
[338181096,1726366248467,-500.0,0.00021917,2]
[338181097,1726366248478,-500.0,0.00021917,2]
[338181098,1726366248488,-500.0,0.00021917,2]
[338181099,1726366248498,-500.0,0.00021917,2]
[338181100,1726366248508,-500.0,0.00021917,2]
[338181101,1726366248517,-505.19648058,0.00021917,2]
[338181102,1726366248527,-500.0,0.00021917,2]
[338181103,1726366248536,-645.21,0.00021917,2]
[338181104,1726366248546,-500.0,0.00021917,2]
[338181105,1726366248556,-511.49432442,0.00021917,2]
[338181106,1726366248565,-500.0,0.00021917,2]
[338181107,1726366248575,-500.0,0.00021917,2]
[338181108,1726366248585,-500.0,0.00021917,2]
[338181109,1726366248594,-457.6138899,0.00021917,2]
[338181110,1726366248604,-938.89,0.00021917,2]
[338181111,1726366248613,-529.03586481,0.00021917,2]
[338181112,1726366248623,-1054.77,0.00021917,2]
[338181113,1726366248633,-500.0,0.00021917,2]
[338181114,1726366248642,-781.12,0.00021917,2]
[338181115,1726366248652,-500.0,0.00021917,2]
[338181116,1726366248662,-502.27209661,0.00021917,2]
[338181117,1726366248673,-500.0,0.00021917,2]
[338181118,1726366248686,-500.0,0.00021917,2]
[338181119,1726366248697,-500.0,0.00021917,2]
[338181120,1726366248707,-947.48,0.00021917,2]
[338181121,1726366248717,-865.75,0.00021917,2]
[338181122,1726366248727,-700.6,0.00021917,2]
[338181123,1726366248737,-818.29,0.00021917,2]
[338181124,1726366248751,-554.77,0.00021917,2]
[338181125,1726366248760,-500.0,0.00021917,2]
[338181126,1726366248772,-500.0,0.00021917,2]
[338181127,1726366248781,-500.0,0.00021917,2]
[338181128,1726366248793,-549.48138052,0.00021917,2]
[338181129,1726366248803,-508.71711339,0.00021917,2]
[338181130,1726366248814,-500.0,0.00021917,2]
[338181131,1726366248824,-503.39738914,0.00021917,2]
[338181132,1726366248834,-500.0,0.00021917,2]
[338181133,1726366248845,-501.09452192,0.00021917,2]
[338181134,1726366248855,-500.0,0.00021917,2]
[338181135,1726366248867,-504.89099229,0.00021917,2]
[338181136,1726366248877,-500.0,0.00021917,2]
[338181137,1726366248888,-500.0,0.00021917,2]
[338181138,1726366248899,-2024.22,0.00021917,2]
[338181139,1726366248908,-500.0,0.00021917,2]
[338181140,1726366248919,-500.0,0.00021917,2]
[338181141,1726366248929,-500.0,0.00021917,2]
[338181142,1726366248938,-500.0,0.00021917,2]
[338181143,1726366248949,-502.21456737,0.00021917,2]
[338181144,1726366248958,-500.0,0.00021917,2]
[338181145,1726366248967,-594.27,0.00021917,2]
[338181146,1726366248977,-852.83,0.00021917,2]
[338181147,1726366248987,-1953.17,0.00021917,2]
[338181148,1726366248997,-502.55458762,0.00021917,2]
[338181149,1726366249006,-500.0,0.00021917,2]
[338181150,1726366249017,-503.43604923,0.00021917,2]
[338181151,1726366249028,-500.0,0.00021917,2]
[338181152,1726366249037,-500.0,0.00021917,2]
[338181153,1726366249047,-500.0,0.00021917,2]
[338181154,1726366249056,-500.0,0.00021917,2]
[338181155,1726366249065,-500.0,0.00021917,2]
[338181156,1726366249076,-500.0,0.00021917,2]
[338181157,1726366249085,-500.0,0.00021917,2]
[338181158,1726366249095,-500.0,0.00021917,2]
[338181159,1726366249105,-500.0,0.00021917,2]
[338181160,1726366249115,-500.0,0.00021917,2]
[338181161,1726366249125,-517.49,0.00021917,2]
[338181162,1726366249135,-500.0,0.00021917,2]
[338181163,1726366249146,-500.0,0.00021917,2]
[338181164,1726366249156,-500.0,0.00021917,2]
[338181165,1726366249167,-500.84032881,0.00021917,2]
[338181166,1726366249177,-541.39057308,0.00021917,2]
[338181167,1726366249187,-500.0,0.00021917,2]
[338181168,1726366249197,-530.98957496,0.00021917,2]
[338181169,1726366249206,-500.0,0.00021917,2]
[338181170,1726366249217,-619.17,0.00021917,2]
[338181171,1726366249226,-500.0,0.00021917,2]
[338181172,1726366249236,-500.0,0.00021917,2]
[338181173,1726366249246,-500.0,0.00021917,2]
[338181174,1726366249256,-500.0,0.00021917,2]
[338181175,1726366249267,-607.34824513,0.00021917,2]
[338181176,1726366249277,-504.49175844,0.00021917,2]
[338181177,1726366249287,-500.0,0.00021917,2]
[338181178,1726366249297,-502.02271783,0.00021917,2]
[338181179,1726366249307,-500.0,0.00021917,2]
[338181180,1726366249316,-1059.92,0.00021917,2]
[338181181,1726366249326,-500.0,0.00021917,2]
[338181182,1726366249335,-500.0,0.00021917,2]
[338181183,1726366249345,-903.56,0.00021917,2]
[338181184,1726366249354,-500.0,0.00021917,2]
[338181185,1726366249364,-500.0,0.00021917,2]
[338181186,1726366249374,-1340.99,0.00021917,2]
[338181187,1726366249383,-501.90150345,0.00021917,2]
[338181188,1726366249392,-500.0,0.00021917,2]
[338181189,1726366249402,-500.0,0.00021917,2]
[338181190,1726366249412,-556.04432601,0.00021917,2]
[338181191,1726366249422,-500.0,0.00021917,2]
[338181192,1726366249432,-500.0,0.00021917,2]
[338181193,1726366249442,-500.0,0.00021917,2]
[338181194,1726366249453,-500.0,0.00021917,2]
[338181195,1726366249462,-500.0,0.00021917,2]
[338181196,1726366249473,-2128.62,0.00021917,2]
[338181197,1726366249482,-500.0,0.00021917,2]
[338181198,1726366249493,-500.0,0.00021917,2]
[338181199,1726366249503,-615.44995615,0.00021917,2]
[338181200,1726366249512,-540.87,0.00021917,2]
[338181201,1726366249522,-509.38352639,0.00021917,2]
[338181202,1726366249533,-498.50037092,0.00021917,2]
[338181203,1726366249543,-754.9,0.00021917,2]
[338181204,1726366249553,-2707.84,0.00021917,2]
[338181205,1726366249563,-1550.3,0.00021917,2]
[338181206,1726366249574,-503.6933333,0.00021917,2]
[338181207,1726366249584,-200.0,0.00021917,2]
[338181208,1726366249594,-500.0,0.00021917,2]
[338181209,1726366249603,-500.0,0.00021917,2]
[338181210,1726366249614,-724.64,0.00021917,2]
[338181211,1726366249623,-500.0,0.00021917,2]
[338181212,1726366249633,-500.0,0.00021917,2]
[338181213,1726366249643,-1226.28,0.00021917,2]
[338181214,1726366249654,-500.0,0.00021917,2]
[338181215,1726366249664,-500.0,0.00021917,2]
[338181216,1726366249675,-500.0,0.00021917,2]
[338181217,1726366249685,-500.0,0.00021917,2]
[338181218,1726366249695,-500.0,0.00021917,2]
[338181219,1726366249707,-500.0,0.00021917,2]
[338181220,1726366249717,-500.0,0.00021917,2]
[338181221,1726366249728,-500.0,0.00021917,2]
[338181222,1726366249740,-504.2122915,0.00021917,2]
[338181223,1726366249751,-500.0,0.00021917,2]
[338181224,1726366249761,-1100.64,0.00021917,2]
[338181225,1726366249771,-500.0,0.00021917,2]
[338181226,1726366249783,-500.0,0.00021917,2]
[338181227,1726366249794,-1977.66,0.00021917,2]
[338181228,1726366249805,-500.0,0.00021917,2]
[338181229,1726366249816,-500.0,0.00021917,2]
[338181230,1726366249827,-500.0,0.00021917,2]
[338181231,1726366249836,-500.0,0.00021917,2]
[338181232,1726366249846,-500.0,0.00021917,2]
[338181233,1726366249857,-221.7,0.00021917,2]
[338181234,1726366249868,-500.0,0.00021917,2]
[338181235,1726366249878,-1826.64,0.00021917,2]
[338181236,1726366249887,-500.0,0.00021917,2]
[338181237,1726366249897,-500.0,0.00021917,2]
[338181238,1726366249908,-2964.6,0.00021917,2]
[338181239,1726366249917,-500.0,0.00021917,2]
[338181240,1726366249926,-500.0,0.00021917,2]
[338181241,1726366249935,-500.0,0.00021917,2]
[338181242,1726366249944,-500.89191613,0.00021917,2]
[338181243,1726366249954,-3195.19,0.00021917,2]
[338181244,1726366249963,-500.0,0.00021917,2]
[338181245,1726366249973,-500.0,0.00021917,2]
[338181246,1726366249982,-500.0,0.00021917,2]
[338181247,1726366249991,-503.95436521,0.00021917,2]
[338181248,1726366250000,-2094.84,0.00021917,2]
[338181249,1726366250009,-500.0,0.00021917,2]
[338181250,1726366250018,-500.0,0.00021917,2]
[338181251,1726366250028,-824.83,0.00021917,2]
[338181252,1726366250038,-2382.89,0.00021917,2]
[338181253,1726366250048,-551.56,0.00021917,2]
[338181254,1726366250057,-500.84414121,0.00021917,2]
[338181255,1726366250065,-5078.57,0.00021917,2]
[338181256,1726366250076,-1447.27,0.00021917,2]
[338181257,1726366250087,-1318.29,0.00021917,2]
[338181258,1726366250098,-559.76284257,0.00021917,2]
[338181259,1726366250109,-500.0,0.00021917,2]
[338181260,1726366250119,-1156.96,0.00021917,2]
[338181261,1726366250129,-500.0,0.00021917,2]
[338181262,1726366250139,-565.90084281,0.00021917,2]
[338181263,1726366250149,-2148.21,0.00021917,2]
[338181264,1726366250160,-500.0,0.00021917,2]
[338181265,1726366250171,-500.0,0.00021917,2]
[338181266,1726366250181,-520.52016986,0.00021917,2]
[338181267,1726366250192,-500.0,0.00021917,2]
[338181268,1726366250202,-500.0,0.00021917,2]
[338181269,1726366250212,-500.0,0.00021917,2]
[338181270,1726366250222,-525.73,0.00021917,2]
[338181271,1726366250231,-500.0,0.00021917,2]
[338181272,1726366250241,-500.0,0.00021917,2]
[338181273,1726366250251,-500.0,0.00021917,2]
[338181274,1726366250261,-500.0,0.00021917,2]
[338181275,1726366250271,-500.0,0.00021917,2]
[338181276,1726366250284,-500.0,0.00021917,2]
[338181277,1726366250295,-769.5,0.00021917,2]
[338181278,1726366250306,-1461.51,0.00021917,2]
[338181279,1726366250318,-267.8198087,0.00021917,2]
[338181280,1726366250329,-500.0,0.00021917,2]
[338181281,1726366250341,-2513.18,0.00021917,2]
[338181282,1726366250351,-502.0108749,0.00021917,2]
[338181283,1726366250361,-720.23,0.00021917,2]
[338181284,1726366250372,-500.0,0.00021917,2]
[338181285,1726366250382,-1484.52,0.00021917,2]
[338181286,1726366250392,-1611.4,0.00021917,2]
[338181287,1726366250401,-500.0,0.00021917,2]
[338181288,1726366250411,-500.0,0.00021917,2]
[338181289,1726366250420,-504.83878926,0.00021917,2]
[338181290,1726366250429,-531.49447958,0.00021917,2]
[338181291,1726366250438,-500.0,0.00021917,2]
[338181292,1726366250449,-567.93,0.00021917,2]
[338181293,1726366250459,-500.0,0.00021917,2]
[338181294,1726366250471,-1721.21,0.00021917,2]
[338181295,1726366250482,-500.0,0.00021917,2]
[338181296,1726366250494,-500.0,0.00021917,2]
[338181297,1726366250505,-500.0,0.00021917,2]
[338181298,1726366250514,-500.0,0.00021917,2]
[338181299,1726366250524,-500.0,0.00021917,2]
[338181300,1726366250534,-1291.06,0.00021917,2]
[338181301,1726366250544,-500.0,0.00021917,2]
[338181302,1726366250553,-500.0,0.00021917,2]
[338181303,1726366250563,-500.0,0.00021917,2]
[338181304,1726366250573,-576.39,0.00021917,2]
[338181305,1726366250583,-500.0,0.00021917,2]
[338181306,1726366250592,-599.37,0.00021917,2]
[338181307,1726366250601,-3210.44,0.00021917,2]
[338181308,1726366250611,-524.8,0.00021917,2]
[338181309,1726366250620,-590.32,0.00021917,2]
[338181310,1726366250630,-500.0,0.00021917,2]
[338181311,1726366250639,-895.36,0.00021917,2]
[338181312,1726366250649,-647.57401744,0.00021917,2]
[338181313,1726366250658,-500.0,0.00021917,2]
[338181314,1726366250667,-502.25,0.00021917,2]
[338181315,1726366250677,-999.01,0.00021917,2]
[338181316,1726366250686,-500.0,0.00021917,2]
[338181317,1726366250695,-2929.5,0.00021917,2]
[338181318,1726366250703,-500.0,0.00021917,2]
[338181319,1726366250713,-48876.37,0.00021917,2]
[338181320,1726366250723,-500.0,0.00021917,2]
[338181321,1726366250733,-673.73,0.00021917,2]
[338181322,1726366250747,-500.0,0.00021917,2]
[338181323,1726366250756,-500.0,0.00021917,2]
[338181324,1726366250765,-878.02,0.00021917,2]
[338181325,1726366250774,-500.0,0.00021917,2]
[338181326,1726366250786,-500.0,0.00021917,2]
[338181327,1726366250797,-500.0,0.00021917,2]
[338181328,1726366250808,-500.0,0.00021917,2]
[338181329,1726366250818,-500.0,0.00021917,2]
[338181330,1726366250828,-500.0,0.00021917,2]
[338181331,1726366250838,-373.56557754,0.00021917,2]
[338181332,1726366250847,-500.0,0.00021917,2]
[338181333,1726366250856,-500.0,0.00021917,2]
[338181334,1726366250866,-500.0,0.00021917,2]
[338181335,1726366250875,-285.69690745,0.00021917,2]
[338181336,1726366250885,-500.0,0.00021917,2]
[338181337,1726366250895,-3115.41,0.00021917,2]
[338181338,1726366250904,-500.0,0.00021917,2]
[338181339,1726366250914,-500.0,0.00021917,2]
[338181340,1726366250922,-911.0,0.00021917,2]
[338181341,1726366250932,-500.0,0.00021917,2]
[338181342,1726366250941,-500.0,0.00021917,2]
[338181343,1726366250950,-500.0,0.00021917,2]
[338181344,1726366250960,-714.99,0.00021917,2]
[338181345,1726366250970,-500.0,0.00021917,2]
[338181346,1726366250979,-1041.07,0.00021917,2]
[338181347,1726366250989,-500.0,0.00021917,2]
[338181348,1726366250998,-846.33,0.00021917,2]
[338181349,1726366251007,-500.0,0.00021917,2]
[338181350,1726366251016,-75949.06,0.00021917,2]
[338181351,1726366251025,-500.0,0.00021917,2]
[338181352,1726366251035,-500.0,0.00021917,2]
[338181353,1726366251047,-500.0,0.00021917,2]
[338181354,1726366251058,-503.69020547,0.00021917,2]
[338181355,1726366251070,-500.73,0.00021917,2]
[338181356,1726366251082,-4697.68,0.00021917,2]
[338181357,1726366251094,-1409.17,0.00021917,2]
[338181358,1726366251105,-500.0,0.00021917,2]
[338181359,1726366251115,-500.0,0.00021917,2]
[338181360,1726366251124,-500.0,0.00021917,2]
[338181361,1726366251135,-500.0,0.00021917,2]
[338181362,1726366251145,-1563.2,0.00021917,2]
[338181363,1726366251156,-500.0,0.00021917,2]
[338181364,1726366251166,-500.0,0.00021917,2]
[338181365,1726366251180,-990.06,0.00021917,2]
[338181366,1726366251191,-657.67,0.00021917,2]
[338181367,1726366251200,-500.0,0.00021917,2]
[338181368,1726366251209,-1696.78,0.00021917,2]
[338181369,1726366251219,-4047.68,0.00021917,2]
[338181370,1726366251228,-500.0,0.00021917,2]
[338181371,1726366251238,-500.0,0.00021917,2]
[338181372,1726366251248,-500.0,0.00021917,2]
[338181373,1726366251258,-1029.25,0.00021917,2]
[338181374,1726366251270,-1886.81,0.00021917,2]
[338181375,1726366251282,-1616.63,0.00021917,2]
[338181376,1726366251292,-1673.3,0.00021917,2]
[338181377,1726366251301,-500.0,0.00021917,2]
[338181378,1726366251311,-30575.56,0.00021917,2]
[338181379,1726366251320,-500.0,0.00021917,2]
[338181380,1726366251329,-2152.78,0.00021917,2]
[338181381,1726366251339,-501.59994441,0.00021917,2]
[338181382,1726366251349,-1000.0,0.00021917,2]
[338181383,1726366251359,-500.0,0.00021917,2]
[338181384,1726366251369,-500.0,0.00021917,2]
[338181385,1726366251379,-631.79,0.00021917,2]
[338181386,1726366251389,-501.1333569,0.00021917,2]
[338181387,1726366251400,-1435.49,0.00021917,2]
[338181388,1726366251410,-3620.44,0.00021917,2]
[338181389,1726366251420,-500.0,0.00021917,2]
[338181390,1726366251430,-500.0,0.00021917,2]
[338181391,1726366251439,-21139.12,0.00021917,2]
[338181392,1726366251449,-571.88193569,0.00021917,2]
[338181393,1726366251459,-500.0,0.00021917,2]
[338181394,1726366251468,-500.0,0.00021917,2]
[338181395,1726366251478,-2515.52,0.00021917,2]
[338181396,1726366251488,-3469.47,0.00021917,2]
[338181397,1726366251498,-500.0,0.00021917,2]
[338181398,1726366251508,-500.0,0.00021917,2]
[338181399,1726366251517,-500.0,0.00021917,2]
[338181400,1726366251528,-710.95,0.00021917,2]
[338181401,1726366251538,-20707.28,0.00021917,2]
[338181402,1726366251547,-1411.12,0.00021917,2]
[338181403,1726366251557,-10042.02,0.00021917,2]
[338181404,1726366251567,-500.0,0.00021917,2]
[338181405,1726366251576,-1020.33,0.00021917,2]
[338181406,1726366251585,-3028.0,0.00021917,2]
[338181407,1726366251595,-5652.13,0.00021917,2]
[338181408,1726366251605,-391.67024939,0.00021917,2]
[338181409,1726366251616,-500.0,0.00021917,2]
[338181410,1726366251626,-500.0,0.00021917,2]
[338181411,1726366251635,-617.58,0.00021917,2]
[338181412,1726366251645,-2136.93,0.00021917,2]
[338181413,1726366251656,-500.0,0.00021917,2]
[338181414,1726366251666,-14517.44,0.00021917,2]
[338181415,1726366251676,-500.0,0.00021917,2]
[338181416,1726366251685,-500.0,0.00021917,2]
[338181417,1726366251695,-500.0,0.00021917,2]
[338181418,1726366251706,-500.0,0.00021917,2]
[338181419,1726366251717,-412.30101691,0.00021917,2]
[338181420,1726366251727,-1923.72,0.00021917,2]
[338181421,1726366251737,-500.0,0.00021917,2]
[338181422,1726366251977,-3082.31,0.00021917,2]
[338181423,1726366251987,-500.0,0.00021917,2]
[338181424,1726366251998,-500.0,0.00021917,2]
[338181425,1726366252007,-2013.0,0.00021917,2]
[338181426,1726366252017,-961.17,0.00021917,2]
[338181427,1726366252028,-4159.33,0.00021917,2]
[338181428,1726366252037,-1449.57,0.00021917,2]
[338181429,1726366252047,-602.36,0.00021917,2]
[338181430,1726366252057,-500.0,0.00021917,2]
[338181431,1726366252066,-1351.1,0.00021917,2]